Cogmind - Beta 9.2 @@@ ROGUE MODE // 2019.11.15 @ 21:50:03 Player: DrZettl Result: Destroyed by B-36 Bruiser with Hammer Performance ------------- Evolutions (1) 500 Regions Visited (3) 600 Robots Destroyed (41) 205 Value Destroyed (621) 621 Prototype IDs (3) 60 Alien Tech Used (0) 0 Bonus (99) 99 TOTAL SCORE: 2085 Bonus ------- Follower Combat Kills 99 Cogmind --------- Core Integrity 0/400 Matter 300/300 Energy 240/240 System Corruption 0% Temperature Cool (0) Movement Treading (220) Ox3 Location -9/Materials Parts ------- > --- POWER (1) -------- Nuclear Core > --- PROPULSION (2) --- Light Treads > --- UTILITY (3) ------ Large Storage Unit High-capacity Storage Unit Signal Interpreter > --- WEAPON (3) ------- Shotgun Minigun > --- INVENTORY (18) --- Nuclear Core Nuclear Core Light Treads Light Treads Improved Heat Sink Large Storage Unit Medium Matter Pod (100) Experimental Sensor Array Improved Targeting Computer Hardened Light Armor Plating Hardened Light Armor Plating Trap Extractor Minigun Minigun Rocket Launcher Heavy Flail Peak State ------------ > --- POWER ------------ Nuclear Core > --- PROPULSION ------- Light Treads Light Treads > --- UTILITY ---------- High-capacity Storage Unit Experimental Sensor Array Signal Interpreter > --- WEAPON ----------- Beam Rifle Shotgun Minigun > --- INVENTORY -------- Nuclear Core Nuclear Core Light Treads Improved Heat Sink Large Storage Unit Large Storage Unit Medium Matter Pod Hardened Light Armor Plating Hardened Light Armor Plating Trap Extractor Rocket Launcher Heavy Flail [Rating: 22] Favorites ----------- Power Nuclear Core Engine Ion Engine Power Core Nuclear Core Propulsion Compact Wheel Treads Light Treads Wheel Compact Wheel Utility Signal Interpreter Device Improved Heat Sink Storage High-capacity Storage Unit Processor Signal Interpreter Protection Hardened Light Armor Plating Weapon Light Assault Rifle Energy Gun Medium Laser Energy Cannon Beam Cannon Ballistic Gun Light Assault Rifle Launcher Rocket Launcher Special Weapon Mining Laser Impact Weapon Heavy Flail Build | -11 -10 -10 -9 ------- Run | Scr Mat Min Mat Slots Evolved 2 | . . . 2 Power . | . . . . Propulsion . | . . . . Utility 1 | . . . 1 Weapon 1 | . . . 1 Parts Attached 47 | 7 10 5 25 Power 7 | 1 2 . 4 Engine 4 | 1 2 . 1 Core 3 | . . . 3 Reactor . | . . . . Propulsion 12 | 2 3 3 4 Treads 2 | . . . 2 Leg . | . . . . Wheel 10 | 2 3 3 2 Hover . | . . . . Flight . | . . . . Utility 11 | 2 3 . 6 Device 2 | . . . 2 Storage 5 | 1 2 . 2 Processor 2 | 1 1 . . Hackware . | . . . . Protection 2 | . . . 2 Artifact . | . . . . Weapon 17 | 2 2 2 11 Energy Gun 6 | 1 1 1 3 Energy Cannon 1 | . . . 1 Ballistic Gun 7 | 1 1 1 4 Ballistic Cannon . | . . . . Launcher 1 | . . . 1 Special Weapon 1 | . . . 1 Impact Weapon 1 | . . . 1 Slashing Weapon . | . . . . Piercing Weapon . | . . . . Special Melee Weapon . | . . . . Unidentified Prototypes 1 | . . . 1 Parts Lost 14 | . 1 1 12 Power 1 | . . . 1 Propulsion 6 | . 1 1 4 Utility 1 | . . . 1 Weapon 6 | . . . 6 Highest Loss Streak 6 | . 1 1 6 Average Slot Usage (%) 95 | . 100 99 92 Engine 7 | . 14 14 2 Core 4 | . . . 7 Treads 6 | . . . 10 Wheel 16 | . 28 27 8 Device 3 | . . . 5 Storage 13 | . 15 14 13 Processor 11 | . 12 14 11 Protection 2 | . . . 3 Energy Gun 11 | . 14 14 10 Energy Cannon 2 | . . . 3 Ballistic Gun 11 | . 14 14 9 Special Weapon 1 | . . . 2 Impact Weapon 1 | . . . 3 Naked Turns . | . . . . Heaviest Build 64 | 10 24 27 64 Greatest Support 40 | 26 32 32 40 Greatest Overweight (x) 15 | . 1 1 15 Average Overweight (x) . | . . . 1 Largest Inventory Capacity 18 | 6 10 10 18 Average Capacity 11 | 5 8 10 13 Most Carried 16 | 6 10 10 16 Average Carried 9 | 2 7 9 11 Final Capacity 18 | 6 10 10 18 Final Carried 16 | 6 10 10 16 Class Distribution -------------------- 65% | Mutant 20% | Scavenger-Gunner 10% | Gunner 3% | Tank Dominant Class ---------------- Mutant | -10/Materials Mutant | -10/Mines Mutant | -9/Materials Resources | -11 -10 -10 -9 ----------- Run | Scr Mat Min Mat Matter Collected 782 | 283 106 76 317 Remotely . | . . . . Salvage Created 1212 | 143 194 278 597 Parts 91 | 11 14 11 55 Haulers Intercepted 3 | . 1 . 2 Recyclers Shooed 2 | . . . 2 Parts Field Recycled . | . . . . Retrieved Matter . | . . . . Parts Self-Destructed . | . . . . Prevented . | . . . . Kills | -11 -10 -10 -9 ------- Run | Scr Mat Min Mat Combat Hostiles Destroyed 22 | . 5 4 13 Melee 1 | . . . 1 Guns 17 | . 5 4 8 Cannons 1 | . . . 1 AOE 3 | . . . 3 Classes Destroyed 9 | 2 3 . 4 Worker 4 | . . . 4 Builder 2 | . . . 2 Tunneler 4 | 3 . . 1 Hauler 3 | . 1 . 2 Recycler 3 | 1 . 1 1 Watcher 3 | . . . 3 Swarmer 12 | . 3 . 9 Grunt 9 | . 2 4 3 Sentry 1 | . . . 1 Best Kill Streak 5 | 4 3 2 5 Combat Bots Only 3 | . 3 1 3 Max Kills in Single Turn 3 | 1 1 1 3 Gunslinging . | . . . . Exploded 3 | . . . 3 Melee 1 | . . . 1 Uniques/NPCs Destroyed . | . . . . Combat | -11 -10 -10 -9 -------- Run | Scr Mat Min Mat Damage Taken 2106 | . 269 245 1592 Core 498 | . 45 41 412 Absorbed by Shields . | . . . . Core Remaining (%) 82 | 100 . 65 . Volleys Fired 99 | 13 21 21 44 Largest 3 | 2 2 2 3 Hottest 181 | 70 70 70 181 Shots Fired 200 | 26 42 42 90 Gun 176 | 26 42 42 66 Cannon 18 | . . . 18 Launcher 1 | . . . 1 Special 5 | . . . 5 Kinetic 87 | 13 21 21 32 Thermal 112 | 13 21 21 57 Explosive 1 | . . . 1 Electromagnetic . | . . . . Robot Hit Streak 8 | 4 8 7 5 Robot Miss Streak 6 | 4 2 3 6 Penetration Max . | . . . . Secondary Targets 2 | . 2 . . Max Gunslinging Chain 1 | . 1 . . Shots Hit Robots 123 | 12 27 28 56 Core Hits 62 | 6 11 14 31 Critical Hits . | . . . . Critical Kills . | . . . . Critical Parts Destroyed . | . . . . Melee Attacks 20 | . . . 20 Impact 20 | . . . 20 Slashing . | . . . . Piercing . | . . . . Sneak Attacks 4 | . . . 4 Combat Hostiles . | . . . . Follow-up Attacks . | . . . . Damage Inflicted 2065 | 152 269 244 1400 Guns 1241 | 152 269 244 576 Cannons 124 | . . . 124 Explosions 101 | . . . 101 Melee 547 | . . . 547 Ramming 4 | . . . 4 Kinetic 557 | 53 83 82 339 Thermal 856 | 99 186 162 409 Explosive 101 | . . . 101 Electromagnetic . | . . . . Impact 547 | . . . 547 Slashing . | . . . . Piercing . | . . . . Highest Corruption . | . . . . Average Corruption . | . . . . Corruption Purged . | . . . . Overload Shots . | . . . . Overflow Damage 76 | . . . 76 Projectiles . | . . . . Explosions . | . . . . Melee 76 | . . . 76 Knockbacks 1 | . . . 1 Impact 1 | . . . 1 Kinetic . | . . . . Secondary . | . . . . Self-Inflicted Damage . | . . . . Shots . | . . . . Rammed 3 | . . . 3 Targets Rammed 3 | . . . 3 Kicked . | . . . . Crushed . | . . . . Highest Temperature 414 | 80 146 163 414 Average Temperature 77 | 33 60 57 109 Received Heat Transfer 732 | . 84 141 507 Effects 2 | . . . 2 Shutdowns 1 | . . . 1 Interference 1 | . . . 1 Siege Activations . | . . . . Robots Corrupted . | . . . . Combat Hostiles . | . . . . Parts Fried 5 | . . . 5 Impact Corruptions 4 | . . . 4 Robots Melted . | . . . . Combat Hostiles . | . . . . Parts Melted 5 | 1 . 1 3 Heat Transferred 2283 | 296 555 481 951 Parts Sabotaged . | . . . . Parts Stolen . | . . . . Parts Stripped . | . . . . Power Chain Reactions . | . . . . Missiles Intercepted . | . . . . Alert | -11 -10 -10 -9 ------- Run | Scr Mat Min Mat Peak Influence 265 | 20 213 150 265 Average Influence 122 | 6 97 92 152 Maximum Alert Level 1 | . 1 . 1 Low Security (%) 79 | 100 86 100 69 Level 1 20 | . 13 . 30 Level 2 . | . . . . Level 3 . | . . . . Level 4 . | . . . . Level 5 . | . . . . High Security . | . . . . Max Security . | . . . . Squads Dispatched 4 | . 2 . 2 Investigation 1 | . 1 . . Extermination . | . . . . Reinforcement 3 | . 1 . 2 Assault . | . . . . Garrison . | . . . . Intercept . | . . . . Construction Impeded 1 | . . . 1 Haulers Reinforced . | . . . . Stealth | -11 -10 -10 -9 --------- Run | Scr Mat Min Mat Distress Signals 5 | . 1 . 4 Communications Jammed . | . . . . Distress Signals . | . . . . Times Spotted 51 | . 13 8 30 Peak Tracking Total 7 | . 6 2 7 Tactical Retreats 8 | . 1 2 5 Traps | -11 -10 -10 -9 ------- Run | Scr Mat Min Mat Traps Triggered . | . . . . Indirectly . | . . . . Trap Hack Attempts . | . . . . Triggered . | . . . . Disarmed 4 | . . . 4 Reprogrammed 6 | . 6 . . Reused 1 | . 1 . . Traps Extracted . | . . . . Installed . | . . . . Triggered 1 | . 1 . . Machines | -11 -10 -10 -9 ---------- Run | Scr Mat Min Mat Machines Disabled 2 | . . 1 1 Max in Single Turn 1 | . . 1 1 Machines Sabotaged . | . . . . Garrisons Compromised . | . . . . Overloaded Fab Kills . | . . . . Fab Network Shutdowns . | . . . . Hacking | -11 -10 -10 -9 --------- Run | Scr Mat Min Mat Machines Accessed 9 | . 4 . 5 Terminals 9 | . 4 . 5 Fabricators . | . . . . Repair Stations . | . . . . Recycling Units . | . . . . Scanalyzers . | . . . . Garrison Access . | . . . . Total Hacks 22 | . 14 . 8 Successful 15 | . 8 . 7 Failed 7 | . 6 . 1 Catastrophic . | . . . . Database Lockouts . | . . . . Manual 13 | . 7 . 6 Terminals 22 | . 14 . 8 Fabricators . | . . . . Repair Stations . | . . . . Recycling Units . | . . . . Scanalyzers . | . . . . Garrison Access . | . . . . Terminal Hacks 8 | . 3 . 5 Prototype ID Bank 1 | . . . 1 Locate Traps 4 | . 2 . 2 Disarm Traps 1 | . . . 1 Reprogram Traps 1 | . 1 . . Zone Layout 1 | . . . 1 Fabricator Hacks . | . . . . Repair Station Hacks . | . . . . Recycling Unit Hacks . | . . . . Scanalyzer . | . . . . Garrison Access Hacks . | . . . . Unauthorized Hacks 17 | . 12 . 5 Terminals 7 | . 5 . 2 Track 3 | . 2 . 1 Botnet 4 | . 3 . 1 Fabricators . | . . . . Repair Stations . | . . . . Recycling Units . | . . . . Scanalyzers . | . . . . Garrison Access . | . . . . Data Cores Recovered . | . . . . Used . | . . . . Hacking Detections 5 | . 4 . 1 Full Trace Events 1 | . 1 . . Feedback Events . | . . . . Feedback Blocked . | . . . . Robot Schematics Acquired . | . . . . Robots Built . | . . . . Matter . | . . . . Time . | . . . . Total Robot Build Rating . | . . . . Part Schematics Acquired . | . . . . Parts Built . | . . . . Matter . | . . . . Time . | . . . . Total Part Build Rating . | . . . . Parts Repaired . | . . . . Time . | . . . . Parts Recycled . | . . . . Recycled Matter . | . . . . Retrieved Matter . | . . . . Retrieved Components . | . . . . Parts Scanalyzed . | . . . . Part Schematics Acquired . | . . . . Parts Damaged . | . . . . Bothacking | -11 -10 -10 -9 ------------ Run | Scr Mat Min Mat Used RIF Installer . | . . . . Robots Hacked . | . . . . Non-combat . | . . . . Combat . | . . . . Robot Hacks Applied . | . . . . Relay Couplers Released . | . . . . Robots Rewired . | . . . . Allies Hacked . | . . . . Hacks Repelled . | . . . . Allies | -11 -10 -10 -9 -------- Run | Scr Mat Min Mat Total Allies 1 | . . 1 . Largest Group 1 | . . 1 1 Highest-Rated Group 31 | . . 31 31 Highest-Rated Ally 31 | . . 31 31 Total Orders . | . . . . Ally Attacks 8 | . . 2 6 Total Damage 148 | . . 42 106 Kills 3 | . . 1 2 Allies Corrupted . | . . . . Allies Melted . | . . . . Intel | -11 -10 -10 -9 ------- Run | Scr Mat Min Mat Robot Analysis Total . | . . . . Derelict Logs Recovered . | . . . . Drone Launches . | . . . . Drone Recoveries . | . . . . Exploration | -11 -10 -10 -9 ------------- Run | Scr Mat Min Mat Turns Passed 2311 | 118 554 359 1280 Spaces Moved 1519 | 73 492 270 684 Core 10 | 1 . . 9 Treads 312 | . . . 312 Legs . | . . . . Wheels 1197 | 72 492 270 363 Hover . | . . . . Flight . | . . . . Fastest Speed 50 | 50 90 90 100 Average Speed 118 | 89 92 92 149 Slowest Speed 800 | 90 100 100 800 Overloaded Moves . | . . . . Propulsion Burnouts . | . . . . Robots Hopped . | . . . . Cave-ins Triggered . | . . . . Exploration Rate (%) 46 | 4 69 65 47 Regions Visited 3 Branch Regions 1 Pre-discovered Areas . | . . . . Known Exits Taken 2 | . 1 1 . Unknown Exits Taken 1 | 1 . . . Scrap Searched 2 | . . 2 . Spaces Dug . | . . . . Terrain Destroyed 12 | . . . 12 Melee . | . . . . Projectile 1 | . . . 1 AOE 11 | . . . 11 Actions | -11 -10 -10 -9 --------- Run | Scr Mat Min Mat Total 1824 | 98 556 345 825 Wait 66 | . 13 34 19 Move 1516 | 72 491 269 684 Hop . | . . . . Pick Up 41 | 6 10 7 18 Fast Attach 15 | 7 2 . 6 Attach 13 | . 2 2 9 Detach 1 | . . . 1 Swap 19 | . 6 3 10 Drop 31 | . 11 9 11 Fire 99 | 13 21 21 44 Melee 20 | . . . 20 Ram 1 | . . . 1 Kick . | . . . . Crush 2 | . . . 2 Escape Stasis . | . . . . Rewire . | . . . . Trap . | . . . . Miscellaneous . | . . . . Route ------- -11/Scrapyard -10/Materials (discovered 3 exits: *Mat x2 / *Min) -10/Mines -9/Materials (discovered 3 exits: [*Mat] / *Min x2) History --------- Turn | Location | Event 16 | -11/Scrapyard | Discovered new exit (range 16) 119 | -11/Scrapyard | Entered Materials 189 | -10/Materials | Discovered new exit (range 13) 209 | -10/Materials | Identified exit to Materials 304 | -10/Materials | Build established: Mutant 312 | -10/Materials | Discovered exit to Materials (range 14) 647 | -10/Materials | Discovered new exit (range 9) 672 | -10/Materials | Identified exit to Mines 673 | -10/Materials | Entered Mines 733 | -10/Mines | Received a Rocket Launcher from a helpful Derelict 777 | -10/Mines | Found a damaged Exp. Sensor Array with a note attached 781 | -10/Mines | Found Prototype Device 870 | -10/Mines | Received a Mining Laser from a helpful Derelict 944 | -10/Mines | A weapon hastily lodged in a ceiling crevice suddenly fell to the ground 990 | -10/Mines | Discovered exit to Materials (range 12) 1002 | -10/Mines | Joined a pair of Derelicts in attacking an 0b10 outpost 1032 | -10/Mines | Entered Materials 1032 | -9/Materials | Accompanied by 1 ally 1032 | -9/Materials | Evolved 2 slots: Utility x1, Weapon x1 1046 | -9/Materials | Discovered new exit (range 16) 1090 | -9/Materials | Identified exit to Mines 1210 | -9/Materials | Discovered exit to Mines (range 8) 1309 | -9/Materials | Build established: Scavenger-Gunner 1532 | -9/Materials | Core integrity fell below 50% 1564 | -9/Materials | Lost 6 parts (1p2n3w) 1633 | -9/Materials | Core integrity fell below 20% 1669 | -9/Materials | Lost 3 parts (1n1u1w) 1788 | -9/Materials | Build established: Mutant 2034 | -9/Materials | Identified Exp. Sensor Array 2303 | -9/Materials | Discovered new exit (range 16) 2312 | -9/Materials | Destroyed by B-36 Bruiser with Hammer Last Messages --------------- 02018_ Dropped Hvy. Flail. 02022_ Acquired Nuclear Core. 02030_ Dropped Lgt. Assault Rifle. 02030_ Acquired Minigun. 02034_ Identified Exp. Sensor Array. 02047_ Acquired Minigun. 02081_ Acquired Imp. Targeting Computer. 02091_ Acquired Lgt. Treads. 02092_ Acquired 20 matter. 02121_ Acquired 15 matter. 02128_ Slammed into R-06 Scavenger. 02129_ Acquired 5 matter. 02130_ Acquired 7 matter. 02165_ O-16 Technician: "IFF HANDSHAKE FAILED. SECURING TERMINAL." 02176_ ALERT: Hostiles spotted, dispatching reinforcements to Terminal M010. 02220_ Slammed into W-16 Scout. 02256_ Beam Rifle destroyed. 02303_ EXIT=FOUND 02310_ Lgt. Treads destroyed. Map ----- +----------------------------------------------------+ | ?????????????????????????????????????? | | ?????????????????????????????????????? | | ?????????????????????????????????????? | | ?????????????????????????????????????? | | ?????????????????????????????????????? | | ?????????????????????????????????????? | | ?????????????????????????????????????? | | ?????????????????????????????????????? | | ?????????????????????????????????????? | | ?????????????????????????????????????? | | ?????????????????????????????????????? | | ?????????????????????????????????????? | | ??????????????????????####???????????? | | ??????????????????????# ???????????? | | ??????????????????????# < ???????????? | | ??????????????????????# #??????????? | | ??????????????????????Y #??????????? | | ??????????????????????# #??????????? | | ??????????????????????# #??????????? | | ??????????????????????# #??????????? | | ??????????????????????# g #??????????? | | ??????????????????????# #??????????? | | ??????????????????????# #??????????? | | ??????????????????????# +??????????? | | ??????????????????????# #??????????? | | ??????????????????????# @#??????????? | | ??????????????????????# lb#??????????? | | ??????????????????????#t #??????????? | | ??????????????????????# #??????????? | | ??????????????????###?# #??????????? | | ????????###########T###g #??????????? | | ????????# g #??????????? | | ######### +??????????? | | """ #??????????? | | ######## """ """ #??????????? | | ######## """ """ #??????????? | | # # """ #??????????? | | # """ # #??????????? | | # """ # """ #??????????? | | # """ # """ #??????????? | | + + ! """ #??????????? | | # ## ##### #??????????? | | ####+####+#???# #??????????? | | # #???# """ #??????????? | | # ! #???# """ +??????????? | | / #???# "?? #??????????? | | # #???? ?? ????????????? | | ###+###/#####?? ??????????????????? | | ??????????????????? | | ######?????????????????????????? | +----------------------------------------------------+ Best States ------------- Heat Dissipation 42 Energy Generation 14 Energy Capacity 265 Matter Stores 300 Matter Capacity 300 Sight Range 16 Terrain Scan Density 60 Armor Coverage 150 Evasion (%) 42 Recoil Reduction 2 Item Schematics ----------------- None Robot Schematics ------------------ None Fabricated ------------ Nothing Alien Tech Used ----------------- None Achievements -------------- None Challenges ------------ None Game ------ Seed BeamSmartbombReconfigurator Manual? 0 Play Time 00:30:32 Cumulative 52.1 hours Start 2019.11.15 @ 17:16:21 End 2019.11.15 @ 21:50:03 Sessions 4 Manual Loads 0 Difficulty Rogue Special Mode None Game No. 57 Rogue 57 Adventurer 0 Explorer 0 Win Type - Total 0 Types 0/0/0/0/0/0/0 Lore% 29 Gallery% 43 Achievement% 28 Wizard Run 0 Options --------- ASCII 0 Keyboard 0 Movement Numpad Keybinds 0 Fullscreen 1 Font 16/Smallcaps Map View 76x50 Tactical HUD 1 Map Filters NONE Filters NONE Steam 1 RUN: 5baba72a-023b-446d-ab23-1228501c7d91